fUST/lending_fUST_20240523
["ID","MTS","AMOUNT","RATE_DAILY","PERIOD"]
[327743486,1716421843991,-369.367292,0.00017898,2]
[327743487,1716421844001,-369.367292,0.00017898,2]
[327743488,1716421844010,-423.780127,0.00017898,2]
[327743489,1716421844020,-337.588622,0.00017898,2]
[327743490,1716421844030,-423.780127,0.00017898,2]
[327743491,1716421844039,-337.588622,0.00017898,2]
[327743492,1716421844049,-1012.500983,0.00017898,2]
[327743493,1716421844059,-1012.500983,0.00017898,2]
[327743494,1716421844068,-1082.321684,0.00017898,2]
[327743495,1716421844078,-151.0,0.00017898,2]
[327743496,1716421844087,-1082.321684,0.00017898,2]
[327743497,1716421844096,-151.0,0.00017898,2]
[327743498,1716421844105,-151.0,0.00017898,2]
[327743499,1716421844115,-151.0,0.00017898,2]
[327743500,1716421844125,-151.0,0.00017898,2]
[327743501,1716421844135,-57.02256219,0.00017898,2]
[327743502,1716421844233,-104.64945081,0.00017898,2]
[327743503,1716421844242,-151.0,0.00017898,2]
[327743504,1716421844252,-151.0,0.00017898,2]
[327743505,1716421844262,-151.0,0.00017898,2]
[327743506,1716421844271,-151.0,0.00017898,2]
[327743507,1716421844281,-151.0,0.00017898,2]
[327743508,1716421844290,-151.0,0.00017898,2]
[327743509,1716421844300,-151.0,0.00017898,2]
[327743510,1716421844309,-394.02408447,0.00018142,2]
[327743511,1716421844321,-71.72771237,0.00018142,2]
[327743512,1716421844331,-151.0,0.000189,2]
[327743513,1716421844345,-187.376682,0.000189,2]
[327743514,1716421844355,-151.0,0.000189,2]
[327743515,1716421844365,-187.376682,0.000189,2]
[327743516,1716421844375,-151.151075,0.000189,2]
[327743517,1716421844385,-151.0,0.000189,2]
[327743518,1716421844395,-151.0,0.000189,2]
[327743519,1716421844404,-250.265051,0.000189,2]
[327743520,1716421844415,-250.265051,0.000189,2]
[327743521,1716421844428,-151.0,0.000189,2]
[327743522,1716421844438,-310.26901306,0.000189,2]
[327743523,1716421844592,-378.26231312,0.000189,2]
[327743524,1716421844602,-504.11457007,0.00018999,2]
[327743525,1716421844614,-7302.86528306,0.00018999,2]
[327743526,1716421844627,-15212.12000001,0.00018999,2]
[327743527,1716421844639,-423.02875579,0.00018999,2]
[327743528,1716421844649,-85.98577056,0.00018999,2]
[327743529,1716421844661,-87.21221644,0.00018999,2]
[327743530,1716421844670,-187.376682,0.00018999,2]
[327743531,1716421844681,-151.0,0.00018999,2]
[327743532,1716421844690,-187.376682,0.00018999,2]
[327743533,1716421844700,-151.0,0.00018999,2]
[327743534,1716421844709,-151.0,0.00018999,2]
[327743535,1716421844719,-250.265051,0.00018999,2]
[327743536,1716421844729,-250.265051,0.00018999,2]
[327743537,1716421844739,-151.0,0.00018999,2]
[327743538,1716421844748,-224.45804,0.00018999,2]
[327743539,1716421844757,-151.0,0.00018999,2]
[327743540,1716421844767,-152.675554,0.00018999,2]
[327743541,1716421844777,-324.64054,0.00018999,2]
[327743542,1716421844787,-324.64054,0.00018999,2]
[327743543,1716421844795,-151.0,0.00018999,2]
[327743544,1716421844805,-165.141853,0.00018999,2]
[327743545,1716421844813,-165.141853,0.00018999,2]
[327743546,1716421844822,-151.0,0.00018999,2]
[327743547,1716421844831,-151.0,0.00018999,2]
[327743548,1716421844840,-642.804323,0.00018999,2]
[327743549,1716421844849,-642.804323,0.00018999,2]
[327743550,1716421844858,-151.0,0.00018999,2]
[327743551,1716421844867,-151.0,0.00018999,2]
[327743552,1716421844876,-151.0,0.00018999,2]
[327743553,1716421844885,-369.367292,0.00018999,2]
[327743554,1716421844895,-369.367292,0.00018999,2]
[327743555,1716421844904,-423.780127,0.00018999,2]
[327743556,1716421844914,-337.588622,0.00018999,2]
[327743557,1716421844924,-423.780127,0.00018999,2]
[327743558,1716421844935,-337.588622,0.00018999,2]
[327743559,1716421844944,-1012.500983,0.00018999,2]
[327743560,1716421844954,-1012.500983,0.00018999,2]
[327743561,1716421844964,-1082.321684,0.00018999,2]
[327743562,1716421844974,-151.0,0.00018999,2]
[327743563,1716421844984,-1082.321684,0.00018999,2]
[327743564,1716421844995,-205.721013,0.00018999,2]
[327743565,1716421845005,-151.0,0.00018999,2]
[327743566,1716421845014,-151.0,0.00018999,2]
[327743567,1716421845024,-151.0,0.00018999,2]
[327743568,1716421845033,-151.0,0.00018999,2]
[327743569,1716421845043,-151.0,0.00018999,2]
[327743570,1716421845053,-151.0,0.00018999,2]
[327743571,1716421845063,-151.0,0.00018999,2]
[327743572,1716421845073,-263.9538,0.00018999,2]
[327743573,1716421845083,-151.0,0.00018999,2]
[327743574,1716421845092,-151.0,0.00018999,2]
[327743575,1716421845102,-258.1926785,0.00019,2]
[327743576,1716421845112,-500.0,0.00019178,2]
[327743577,1716421845122,-398.26062409,0.00019178,2]
[327743578,1716421845132,-500.0,0.00019178,2]
[327743579,1716421845143,-500.0,0.00019178,2]
[327743580,1716421845152,-358.11891942,0.00019178,2]
[327743581,1716421845162,-500.0,0.00019178,2]
[327743582,1716421845171,-500.0,0.00019178,2]
[327743583,1716421845181,-500.0,0.00019178,2]
[327743584,1716421845191,-617.69901128,0.00019178,2]
[327743585,1716421845200,-500.0,0.00019178,2]
[327743586,1716421845293,-413.35365219,0.00019178,2]
[327743587,1716421845315,-500.0,0.00019178,2]
[327743588,1716421845324,-204.83982857,0.00019178,2]
[327743589,1716421845333,-500.0,0.00019178,2]
[327743590,1716421845348,-500.0,0.00019178,2]
[327743591,1716421845357,-390.93990836,0.00019178,2]
[327743592,1716421845366,-500.0,0.00019178,2]
[327743593,1716421845376,-500.0,0.00019178,2]
[327743594,1716421845386,-500.0,0.00019178,2]
[327743595,1716421845395,-500.0,0.00019178,2]
[327743596,1716421845404,-500.0,0.00019178,2]
[327743597,1716421845414,-500.0,0.00019178,2]
[327743598,1716421845424,-500.0,0.00019178,2]
[327743599,1716421845434,-500.0,0.00019178,2]
[327743600,1716421845443,-500.0,0.00019178,2]
[327743601,1716421845453,-500.0,0.00019178,2]
[327743602,1716421845462,-151.0,0.00019178,2]
[327743603,1716421845471,-324.64054,0.00019178,2]
[327743604,1716421845480,-324.64054,0.00019178,2]
[327743605,1716421845490,-151.0,0.00019178,2]
[327743606,1716421845499,-165.141853,0.00019178,2]
[327743607,1716421845508,-165.141853,0.00019178,2]
[327743608,1716421845517,-151.0,0.00019178,2]
[327743609,1716421845526,-151.0,0.00019178,2]
[327743610,1716421845535,-642.804323,0.00019178,2]
[327743611,1716421845544,-642.804323,0.00019178,2]
[327743612,1716421845554,-151.0,0.00019178,2]
[327743613,1716421845563,-151.0,0.00019178,2]
[327743614,1716421845572,-151.0,0.00019178,2]
[327743615,1716421845581,-369.367292,0.00019178,2]
[327743616,1716421845590,-369.367292,0.00019178,2]
[327743617,1716421845599,-423.780127,0.00019178,2]
[327743618,1716421845609,-337.588622,0.00019178,2]
[327743619,1716421845617,-423.780127,0.00019178,2]
[327743620,1716421845627,-337.588622,0.00019178,2]
[327743621,1716421845636,-1012.500983,0.00019178,2]
[327743622,1716421845645,-1012.500983,0.00019178,2]
[327743623,1716421845654,-1082.321684,0.00019178,2]
[327743624,1716421845664,-151.0,0.00019178,2]
[327743625,1716421845675,-1082.321684,0.00019178,2]
[327743626,1716421845685,-256.827428,0.00019178,2]
[327743627,1716421845695,-151.0,0.00019178,2]
[327743628,1716421845704,-151.0,0.00019178,2]
[327743629,1716421845713,-151.0,0.00019178,2]
[327743630,1716421845722,-151.0,0.00019178,2]
[327743631,1716421845731,-151.0,0.00019178,2]
[327743632,1716421845740,-151.0,0.00019178,2]
[327743633,1716421845750,-151.0,0.00019178,2]
[327743634,1716421845759,-1039.8666924,0.00019637,2]
[327743635,1716421845769,-9563.3328996,0.00019999,2]
[327743636,1716421845778,-281.67342529,0.00019999,2]
[327743637,1716421845787,-22851.03789124,0.0002,2]
[327743638,1716421845797,-192.569314,0.0002,2]
[327743639,1716421845806,-192.569314,0.0002,2]
[327743640,1716421845815,-192.569314,0.0002,2]
[327743641,1716421845825,-192.569314,0.0002,2]
[327743642,1716421845834,-151.0,0.0002,2]
[327743643,1716421845844,-151.0,0.0002,2]
[327743645,1716421845855,-187.376682,0.0002,2]
[327743647,1716421845864,-151.0,0.0002,2]
[327743648,1716421845873,-187.376682,0.0002,2]
[327743649,1716421845882,-151.0,0.0002,2]
[327743651,1716421845891,-151.0,0.0002,2]
[327743653,1716421845903,-250.265051,0.0002,2]
[327743655,1716421845912,-250.265051,0.0002,2]
[327743657,1716421845922,-151.0,0.0002,2]
[327743659,1716421845932,-245.81913,0.0002,2]
[327743661,1716421845941,-324.64054,0.0002,2]
[327743663,1716421845951,-324.64054,0.0002,2]
[327743665,1716421845962,-151.0,0.0002,2]
[327743667,1716421845971,-165.141853,0.0002,2]
[327743669,1716421845980,-165.141853,0.0002,2]
[327743670,1716421845990,-151.0,0.0002,2]
[327743673,1716421846001,-151.0,0.0002,2]
[327743676,1716421846012,-642.804323,0.0002,2]
[327743678,1716421846021,-642.804323,0.0002,2]
[327743680,1716421846030,-151.0,0.0002,2]
[327743683,1716421846039,-151.0,0.0002,2]
[327743686,1716421846049,-151.0,0.0002,2]
[327743688,1716421846058,-369.367292,0.0002,2]
[327743690,1716421846068,-369.367292,0.0002,2]
[327743691,1716421846077,-423.780127,0.0002,2]
[327743693,1716421846086,-337.588622,0.0002,2]
[327743695,1716421846095,-423.780127,0.0002,2]
[327743697,1716421846104,-337.588622,0.0002,2]
[327743699,1716421846114,-1012.500983,0.0002,2]
[327743701,1716421846124,-1012.500983,0.0002,2]
[327743703,1716421846132,-1082.321684,0.0002,2]
[327743705,1716421846141,-151.0,0.0002,2]
[327743707,1716421846151,-1082.321684,0.0002,2]
[327743709,1716421846160,-151.0,0.0002,2]
[327743711,1716421846170,-151.0,0.0002,2]
[327743713,1716421846179,-151.0,0.0002,2]
[327743715,1716421846188,-151.0,0.0002,2]
[327743717,1716421846197,-151.0,0.0002,2]
[327743718,1716421846207,-151.0,0.0002,2]
[327743720,1716421846216,-151.0,0.0002,2]
[327743722,1716421846225,-417.22450303,0.00020443,2]
[327743724,1716421846234,-4224.86010977,0.00020546,2]
[327743726,1716421846243,-513.71287187,0.00020574,2]
[327743727,1716421846252,-1716.62098532,0.00020574,2]
[327743729,1716421846261,-1684.33877323,0.00020574,2]
[327743731,1716421846271,-942.77170322,0.00020574,2]
[327743733,1716421846280,-1339.19575554,0.00020574,2]
[327743735,1716421846289,-274.24725433,0.00020574,2]
[327743737,1716421846299,-513.4844886,0.00020574,2]
[327743738,1716421846308,-172.61112556,0.00020574,2]
[327743739,1716421846318,-771.33258513,0.00020574,2]
[327743740,1716421846328,-236.44282804,0.00020574,2]
[327743741,1716421846341,-1581.73856904,0.00020574,2]
[327743742,1716421846351,-186.93199799,0.00020574,2]
[327743744,1716421846360,-316.26688974,0.00020574,2]
[327743745,1716421846369,-264.49484469,0.00020574,2]
[327743746,1716421846379,-522.59986638,0.00020574,2]
[327743747,1716421846388,-527.8846238,0.00020574,2]
[327743748,1716421846399,-192.569314,0.00020574,2]
[327743749,1716421846408,-192.569314,0.00020574,2]
[327743750,1716421846418,-187.376682,0.00020574,2]
[327743751,1716421846429,-151.0,0.00020574,2]
[327743752,1716421846439,-187.376682,0.00020574,2]
[327743753,1716421846449,-151.0,0.00020574,2]
[327743754,1716421846458,-151.0,0.00020574,2]
[327743755,1716421846467,-250.265051,0.00020574,2]
[327743756,1716421846476,-250.265051,0.00020574,2]
[327743757,1716421846486,-151.0,0.00020574,2]
[327743758,1716421846495,-324.64054,0.00020574,2]
[327743759,1716421846504,-324.64054,0.00020574,2]
[327743760,1716421846514,-165.141853,0.00020574,2]
[327743761,1716421846524,-165.141853,0.00020574,2]
[327743762,1716421846533,-151.0,0.00020574,2]
[327743763,1716421846542,-151.0,0.00020574,2]
[327743764,1716421846551,-642.804323,0.00020574,2]
[327743765,1716421846560,-642.804323,0.00020574,2]
[327743766,1716421846569,-151.0,0.00020574,2]
[327743767,1716421846579,-151.0,0.00020574,2]
[327743768,1716421846588,-151.0,0.00020574,2]
[327743769,1716421846597,-369.367292,0.00020574,2]
[327743770,1716421846606,-369.367292,0.00020574,2]
[327743771,1716421846616,-423.780127,0.00020574,2]
[327743772,1716421846625,-337.588622,0.00020574,2]
[327743773,1716421846633,-423.780127,0.00020574,2]
[327743774,1716421846643,-337.588622,0.00020574,2]
[327743775,1716421846652,-1012.500983,0.00020574,2]
[327743776,1716421846661,-1012.500983,0.00020574,2]
[327743777,1716421846670,-1082.321684,0.00020574,2]
[327743778,1716421846680,-151.0,0.00020574,2]
[327743779,1716421846689,-1082.321684,0.00020574,2]
[327743780,1716421846698,-151.0,0.00020574,2]
[327743781,1716421846707,-151.0,0.00020574,2]
[327743782,1716421846716,-151.0,0.00020574,2]
[327743783,1716421846725,-151.0,0.00020574,2]
[327743784,1716421846735,-151.0,0.00020574,2]
[327743785,1716421846744,-151.0,0.00020574,2]
[327743786,1716421846753,-151.0,0.00020574,2]
[327743787,1716421846763,-1449.72666987,0.00020575,2]
[327743788,1716421846772,-151.0,0.00020575,2]
[327743789,1716421846782,-151.0,0.00020575,2]
[327743790,1716421846791,-151.0,0.00020575,2]
[327743791,1716421846800,-151.0,0.00020575,2]
[327743792,1716421846809,-262.31558,0.00020575,2]
[327743793,1716421846818,-151.0,0.00020575,2]
[327743794,1716421846827,-151.0,0.00020575,2]
[327743795,1716421846840,-151.0,0.00020575,2]
[327743796,1716421846849,-1120.74257895,0.00020576,2]
[327743797,1716421846858,-818.4821224,0.00020576,2]
[327743798,1716421846867,-309.49005189,0.00020576,2]
[327743799,1716421846877,-704.0616487,0.00020576,2]
[327743800,1716421846979,-292.42639699,0.00020576,2]
[327743801,1716421846989,-221.9141656,0.00020576,2]
[327743802,1716421846998,-284.88862026,0.00020576,2]
[327743803,1716421847008,-1338.74026793,0.00020576,2]
[327743804,1716421847017,-154.97163949,0.00020576,2]
[327743805,1716421847027,-283.50341374,0.00020576,2]
[327743806,1716421847036,-221.02484323,0.00020576,2]
[327743807,1716421847046,-218.7763927,0.00020576,2]
[327743808,1716421847055,-309.75222298,0.00020576,2]
[327743809,1716421847065,-387.68272766,0.00020576,2]
[327743810,1716421847074,-174.21563739,0.00020576,4]
[327743811,1716421847084,-187.376682,0.00020576,2]
[327743812,1716421847094,-151.0,0.00020576,2]
[327743813,1716421847103,-187.376682,0.00020576,2]
[327743814,1716421847112,-151.0,0.00020576,2]
[327743815,1716421847122,-151.0,0.00020576,2]
[327743816,1716421847131,-250.265051,0.00020576,2]
[327743817,1716421847140,-250.265051,0.00020576,2]
[327743818,1716421847149,-324.64054,0.00020576,2]
[327743819,1716421847158,-324.64054,0.00020576,2]
[327743820,1716421847168,-165.141853,0.00020576,2]
[327743821,1716421847177,-165.141853,0.00020576,2]
[327743822,1716421847188,-151.0,0.00020576,2]
[327743823,1716421847197,-151.0,0.00020576,2]
[327743824,1716421847206,-642.804323,0.00020576,2]
[327743825,1716421847215,-642.804323,0.00020576,2]
[327743826,1716421847225,-151.0,0.00020576,2]
[327743827,1716421847234,-151.0,0.00020576,2]
[327743828,1716421847243,-265.003732,0.00020576,2]
[327743829,1716421847252,-369.367292,0.00020576,2]
[327743830,1716421847262,-369.367292,0.00020576,2]
[327743831,1716421847270,-423.780127,0.00020576,2]
[327743832,1716421847280,-337.588622,0.00020576,2]
[327743833,1716421847289,-423.780127,0.00020576,2]
[327743834,1716421847299,-337.588622,0.00020576,2]
[327743835,1716421847308,-1012.500983,0.00020576,2]
[327743836,1716421847317,-1012.500983,0.00020576,2]
[327743837,1716421847326,-1082.321684,0.00020576,2]
[327743838,1716421847336,-1082.321684,0.00020576,2]
[327743839,1716421847350,-154.97828095,0.00020577,2]
[327743840,1716421847359,-390.50300875,0.00020577,2]
[327743841,1716421847368,-309.6903097,0.00020577,2]
[327743842,1716421847379,-155.28665767,0.00020577,2]
[327743843,1716421847388,-192.569314,0.00020577,2]
[327743844,1716421847398,-192.569314,0.00020577,2]
[327743845,1716421847412,-187.376682,0.00020577,2]
[327743846,1716421847421,-151.0,0.00020577,2]
[327743847,1716421847433,-187.376682,0.00020577,2]
[327743848,1716421847442,-151.0,0.00020577,2]
[327743849,1716421847451,-151.0,0.00020577,2]
[327743850,1716421847460,-250.265051,0.00020577,2]
[327743851,1716421847469,-250.265051,0.00020577,2]
[327743852,1716421847479,-324.64054,0.00020577,2]
[327743853,1716421847488,-324.64054,0.00020577,2]
[327743854,1716421847498,-165.141853,0.00020577,2]
[327743855,1716421847507,-165.141853,0.00020577,2]
[327743856,1716421847518,-151.0,0.00020577,2]
[327743857,1716421847527,-151.0,0.00020577,2]
[327743858,1716421847537,-642.804323,0.00020577,2]
[327743859,1716421847546,-642.804323,0.00020577,2]
[327743860,1716421847555,-151.0,0.00020577,2]
[327743861,1716421847565,-151.0,0.00020577,2]
[327743862,1716421847574,-369.367292,0.00020577,2]
[327743863,1716421847583,-369.367292,0.00020577,2]
[327743864,1716421847593,-423.780127,0.00020577,2]
[327743865,1716421847602,-337.588622,0.00020577,2]
[327743866,1716421847612,-423.780127,0.00020577,2]
[327743867,1716421847621,-337.588622,0.00020577,2]
[327743868,1716421847630,-1012.500983,0.00020577,2]
[327743869,1716421847640,-1012.500983,0.00020577,2]
[327743870,1716421847649,-1082.321684,0.00020577,2]
[327743871,1716421847658,-151.0,0.00020577,2]
[327743872,1716421847667,-1082.321684,0.00020577,2]
[327743873,1716421847677,-151.0,0.00020577,2]
[327743874,1716421847688,-183.774709,0.00020577,2]
[327743875,1716421847697,-151.0,0.00020577,2]
[327743876,1716421847707,-151.0,0.00020577,2]
[327743877,1716421847716,-151.0,0.00020577,2]
[327743878,1716421847725,-151.0,0.00020577,2]
[327743879,1716421847736,-1051.26521889,0.00021,2]
[327743880,1716421847746,-465.75179684,0.00021037,2]
[327743881,1716421847755,-166.666666,0.00021918,2]
[327743882,1716421847764,-194.8365637,0.00022,2]
[327743883,1716421847774,-166.666666,0.00022431,2]
[327743884,1716421847783,-166.666666,0.00022944,2]
[327743885,1716421847792,-166.666666,0.00023456,2]
[327743886,1716421847802,-688.53132618,0.000239,2]
[327743887,1716421847812,-465.75179684,0.00023933,2]
[327743888,1716421847821,-166.666666,0.00023969,2]
[327743889,1716421847830,-150.0,0.00024128,2]
[327743890,1716421847840,-208.6,0.00024144,5]
[327743891,1716421847849,-336.945573,0.00024384,2]
[327743892,1716421847858,-162.45379,0.00024384,2]
[327743893,1716421847868,-166.666666,0.00024482,2]
[327743894,1716421847877,-208.6,0.00024988,5]
[327743895,1716421847887,-1807.8960946,0.00025,2]
[327743896,1716421847896,-151.0,0.00025,2]
[327743897,1716421847906,-199.97326,0.00025,2]
[327743898,1716421847915,-250.265051,0.00025,2]
[327743899,1716421847924,-250.265051,0.00025,2]
[327743900,1716421847934,-208.6,0.00025831,5]
[327743901,1716421847943,-208.6,0.00026675,5]
[327743902,1716421847953,-465.75179684,0.00026829,2]
[327743903,1716421847964,-173.0927842,0.00027039,2]
[327743904,1716421847975,-153.0,0.00027039,2]
[327743905,1716421847985,-153.0,0.00027039,2]
[327743906,1716421847995,-153.0,0.00027039,2]
[327743907,1716421848004,-153.0,0.00027039,2]
[327743908,1716421848013,-153.0,0.00027039,2]
[327743909,1716421848023,-1136.59312053,0.0002739,2]
[327743910,1716421848032,-151.0,0.0002739,2]
[327743911,1716421848041,-151.0,0.0002739,2]
[327743912,1716421848051,-151.0,0.0002739,2]
[327743913,1716421848060,-151.0,0.0002739,2]
[327743914,1716421848070,-253.993983,0.0002739,2]
[327743915,1716421848079,-151.0,0.00027396,2]
[327743916,1716421848088,-500.0,0.00027397,2]
[327743917,1716421848098,-500.0,0.00027397,2]
[327743918,1716421848107,-500.0,0.00027397,2]
[327743919,1716421848117,-500.0,0.00027397,2]
[327743920,1716421848126,-500.0,0.00027397,2]
[327743921,1716421848136,-299.50274114,0.00027397,2]
[327743922,1716421848145,-306.85555463,0.00027397,2]
[327743923,1716421848155,-1000.0,0.00027397,5]
[327743924,1716421848164,-1000.0,0.00027397,6]
[327743925,1716421848173,-1000.0,0.00027397,7]
[327743926,1716421848184,-192.569314,0.00027397,2]
[327743927,1716421848193,-192.569314,0.00027397,2]
[327743928,1716421848202,-187.376682,0.00027397,2]
[327743929,1716421848211,-187.376682,0.00027397,2]
[327743930,1716421848220,-151.0,0.00027397,2]
[327743931,1716421848230,-187.376682,0.00027397,2]
[327743932,1716421848239,-187.376682,0.00027397,2]
[327743933,1716421848248,-151.0,0.00027397,2]
[327743934,1716421848257,-250.265051,0.00027397,2]
[327743935,1716421848266,-250.265051,0.00027397,2]
[327743936,1716421848275,-324.64054,0.00027397,2]
[327743937,1716421848285,-324.64054,0.00027397,2]
[327743938,1716421848294,-324.64054,0.00027397,2]
[327743939,1716421848303,-324.64054,0.00027397,2]
[327743940,1716421848312,-165.141853,0.00027397,2]
[327743941,1716421848322,-165.141853,0.00027397,2]
[327743942,1716421848332,-165.141853,0.00027397,2]
[327743943,1716421848347,-165.141854,0.00027397,2]
[327743944,1716421848355,-151.0,0.00027397,2]
[327743945,1716421848365,-151.0,0.00027397,2]
[327743946,1716421848374,-151.0,0.00027397,2]
[327743947,1716421848384,-151.0,0.00027397,2]
[327743948,1716421848394,-642.804323,0.00027397,2]
[327743949,1716421848403,-642.804323,0.00027397,2]
[327743950,1716421848412,-642.804323,0.00027397,2]
[327743951,1716421848422,-642.804323,0.00027397,2]
[327743952,1716421848433,-185.099712,0.00027397,2]
[327743953,1716421848442,-151.0,0.00027397,2]
[327743954,1716421848541,-151.0,0.00027397,2]
[327743955,1716421848551,-369.367292,0.00027397,2]
[327743956,1716421848561,-369.367292,0.00027397,2]
[327743957,1716421848571,-369.367292,0.00027397,2]
[327743958,1716421848580,-369.367292,0.00027397,2]
[327743959,1716421848590,-423.780127,0.00027397,2]
[327743960,1716421848599,-423.780127,0.00027397,2]
[327743961,1716421848609,-337.588622,0.00027397,2]
[327743962,1716421848619,-423.780127,0.00027397,2]
[327743963,1716421848629,-337.588622,0.00027397,2]
[327743964,1716421848639,-423.78012,0.00027397,2]
[327743965,1716421848648,-337.588622,0.00027397,2]
[327743966,1716421848658,-337.588622,0.00027397,2]
[327743967,1716421848668,-1012.500983,0.00027397,2]
[327743968,1716421848677,-1012.500983,0.00027397,2]
[327743969,1716421848687,-1012.500983,0.00027397,2]
[327743970,1716421848697,-1012.50098792,0.00027397,2]
[327743971,1716421848707,-1082.321684,0.00027397,2]
[327743972,1716421848716,-1082.321684,0.00027397,2]
[327743973,1716421848726,-151.0,0.00027397,2]
[327743974,1716421848735,-1082.321684,0.00027397,2]
[327743975,1716421848745,-1082.321674,0.00027397,2]
[327743976,1716421848754,-151.0,0.00027397,2]
[327743977,1716421848764,-151.0,0.00027397,2]
[327743978,1716421848773,-151.0,0.00027397,2]
[327743979,1716421848783,-151.0,0.00027397,2]
[327743980,1716421848792,-809.052485,0.00027397,2]
[327743981,1716421848802,-809.052485,0.00027397,2]
[327743982,1716421848812,-809.052485,0.00027397,2]
[327743983,1716421848822,-809.052485,0.00027397,2]
[327743984,1716421848831,-809.052485,0.00027397,2]
[327743985,1716421848841,-809.052485,0.00027397,2]
[327743986,1716421848851,-809.052485,0.00027397,2]
[327743987,1716421848860,-809.052485,0.00027397,2]
[327743988,1716421848869,-809.052485,0.00027397,2]
[327743989,1716421848879,-809.052485,0.00027397,2]
[327743990,1716421848888,-809.052485,0.00027397,2]
[327743991,1716421848897,-809.052485,0.00027397,2]
[327743992,1716421848906,-809.052485,0.00027397,2]
[327743993,1716421848916,-809.052485,0.00027397,2]
[327743994,1716421848926,-809.052485,0.00027397,2]
[327743995,1716421848936,-809.052485,0.00027397,2]
[327743996,1716421848945,-809.052485,0.00027397,2]
[327743997,1716421848955,-809.052485,0.00027397,2]
[327743998,1716421848964,-809.052485,0.00027397,2]
[327743999,1716421848974,-809.052493,0.00027397,2]
[327744000,1716421848983,-151.0,0.00027397,2]
[327744001,1716421848993,-151.0,0.00027397,2]
[327744002,1716421849002,-151.0,0.00027397,2]
[327744003,1716421849012,-151.0,0.00027397,2]
[327744004,1716421849021,-151.0,0.00027397,2]
[327744005,1716421849031,-151.0,0.00027397,2]
[327744006,1716421849040,-151.0,0.00027397,2]
[327744007,1716421849049,-151.0,0.00027397,2]
[327744008,1716421849059,-151.0,0.00027397,2]
[327744009,1716421849069,-151.0,0.00027397,2]
[327744010,1716421849079,-151.0,0.00027397,2]
[327744011,1716421849088,-239.363975,0.00027397,2]
[327744012,1716421849097,-153.0,0.00027397,2]
[327744013,1716421849107,-153.0,0.00027397,2]
[327744014,1716421849116,-153.0,0.00027397,2]
[327744015,1716421849126,-153.0,0.00027397,2]
[327744016,1716421849135,-153.0,0.00027397,2]
[327744017,1716421849145,-306.0,0.00027397,2]
[327744018,1716421849155,-448.815542,0.00027398,2]
[327744019,1716421849164,-8929.12802452,0.00027398,2]
[327744020,1716421849174,-151.0,0.00027398,2]
[327744021,1716421849183,-250.265051,0.00027398,2]
[327744022,1716421849193,-250.265051,0.00027398,2]
[327744023,1716421849202,-1000.0,0.000274,2]
[327744024,1716421849212,-14480.32218928,0.000275,2]
[327744025,1716421849223,-187.376682,0.000275,2]
[327744026,1716421849232,-187.376682,0.000275,2]
[327744027,1716421849243,-225.181528,0.000275,2]
[327744028,1716421849253,-250.265051,0.000275,2]
[327744029,1716421849263,-250.265045,0.000275,2]
[327744030,1716421849272,-151.0,0.000275,2]
[327744031,1716421849282,-642.804323,0.000275,2]
[327744032,1716421849291,-642.804315,0.000275,2]